[Event "Early-Titled-Tuesday-Blitz-October-24-2023"]
[Site "Chess.com"]
[Date "2023.10.24"]
[Round "6"]
[White "ssgm49"]
[Black "DonCiao"]
[Result "0-1"]
[WhiteElo "1795"]
[BlackElo "2128"]
[TimeControl "180+1"]
[EndTime "9:05:18 PDT"]
[Termination "DonCiao won on time"]

1. Nf3 {[%clk 0:03:00.1]} 1... Nf6 {[%clk 0:02:59]} 2. d4 {[%clk 0:02:59.4]}
2... g6 {[%clk 0:02:57.6]} 3. c4 {[%clk 0:02:58]} 3... Bg7 {[%clk 0:02:57.6]} 4.
Nc3 {[%clk 0:02:57.6]} 4... d5 {[%clk 0:02:57.8]} 5. e3 {[%clk 0:02:54.9]} 5...
O-O {[%clk 0:02:56.8]} 6. Bd3 {[%clk 0:02:47.4]} 6... dxc4 {[%clk 0:02:52.8]} 7.
Bxc4 {[%clk 0:02:44.6]} 7... c5 {[%clk 0:02:53.3]} 8. O-O {[%clk 0:02:34]} 8...
cxd4 {[%clk 0:02:52.7]} 9. Nxd4 {[%clk 0:02:33.7]} 9... a6 {[%clk 0:02:49.6]}
10. a4 {[%clk 0:02:26.4]} 10... Nbd7 {[%clk 0:02:42.8]} 11. a5 {[%clk
0:01:55.8]} 11... Qc7 {[%clk 0:02:39.6]} 12. Qe2 {[%clk 0:01:35.1]} 12... e5
{[%clk 0:02:27]} 13. Nf3 {[%clk 0:01:22.1]} 13... e4 {[%clk 0:02:18.3]} 14. Nd4
{[%clk 0:01:20.3]} 14... Ne5 {[%clk 0:02:17.9]} 15. Bb3 {[%clk 0:00:59.5]} 15...
Bg4 {[%clk 0:02:05.6]} 16. Qc2 {[%clk 0:00:50]} 16... Rac8 {[%clk 0:01:55.3]}
17. h3 {[%clk 0:00:37.4]} 17... Bd7 {[%clk 0:01:51.4]} 18. Nde2 {[%clk
0:00:29.5]} 18... Bb5 {[%clk 0:01:34.7]} 19. Rd1 {[%clk 0:00:24.7]} 19... Bd3
{[%clk 0:01:32.8]} 20. Qd2 {[%clk 0:00:24.2]} 20... Rfd8 {[%clk 0:01:30.7]} 21.
Ng3 {[%clk 0:00:20.3]} 21... Nc4 {[%clk 0:01:14.5]} 22. Bxc4 {[%clk 0:00:19.5]}
22... Qxc4 {[%clk 0:01:14.5]} 23. Qe1 {[%clk 0:00:18]} 23... Bc2 {[%clk
0:01:10.6]} 24. Rxd8+ {[%clk 0:00:17.3]} 24... Rxd8 {[%clk 0:01:10.2]} 25. Bd2
{[%clk 0:00:17.5]} 25... Qd3 {[%clk 0:01:07]} 26. Rc1 {[%clk 0:00:16.6]} 26...
Qxd2 {[%clk 0:01:05.4]} 27. Qxd2 {[%clk 0:00:15]} 27... Rxd2 {[%clk 0:01:05.3]}
28. Nf1 {[%clk 0:00:15.7]} 28... Rd8 {[%clk 0:01:03.8]} 29. Rxc2 {[%clk
0:00:15.9]} 29... Rc8 {[%clk 0:00:53.6]} 30. Rd2 {[%clk 0:00:14.5]} 30... Rc5
{[%clk 0:00:47.9]} 31. Rd8+ {[%clk 0:00:14]} 31... Bf8 {[%clk 0:00:47.2]} 32.
Ng3 {[%clk 0:00:13.7]} 32... Rxa5 {[%clk 0:00:46.3]} 33. Ngxe4 {[%clk
0:00:13.2]} 33... Nxe4 {[%clk 0:00:45.3]} 34. Nxe4 {[%clk 0:00:13.9]} 34... Kg7
{[%clk 0:00:45.6]} 35. Rd7 {[%clk 0:00:11.9]} 35... Rb5 {[%clk 0:00:45]} 36. Rd2
{[%clk 0:00:09.5]} 36... Rb3 {[%clk 0:00:41.6]} 37. Ng3 {[%clk 0:00:07.7]} 37...
Bb4 {[%clk 0:00:40.7]} 38. Rc2 {[%clk 0:00:07.3]} 38... b5 {[%clk 0:00:39.7]}
39. Ne2 {[%clk 0:00:07.7]} 39... a5 {[%clk 0:00:38.4]} 40. Nd4 {[%clk
0:00:07.9]} 40... Rd3 {[%clk 0:00:37.8]} 41. Nxb5 {[%clk 0:00:07.1]} 41... Rd1+
{[%clk 0:00:37.7]} 42. Kh2 {[%clk 0:00:07.5]} 42... a4 {[%clk 0:00:36.3]} 43.
Nd4 {[%clk 0:00:06]} 43... Bd6+ {[%clk 0:00:34.9]} 44. g3 {[%clk 0:00:05.3]}
44... Rb1 {[%clk 0:00:33.5]} 45. Rc6 {[%clk 0:00:04.5]} 45... Be5 {[%clk
0:00:33.3]} 46. Rc4 {[%clk 0:00:04]} 46... Rxb2 {[%clk 0:00:32.4]} 47. Rxa4
{[%clk 0:00:04.1]} 47... Rxf2+ {[%clk 0:00:32.9]} 48. Kg1 {[%clk 0:00:03.8]}
48... Rb2 {[%clk 0:00:32.2]} 0-1

[Event "Early-Titled-Tuesday-Blitz-October-24-2023"]
[Site "Chess.com"]
[Date "2023.10.24"]
[Round "6"]
[White "ContrVersia"]
[Black "Sokoloco"]
[Result "0-1"]
[WhiteElo "2897"]
[BlackElo "2743"]
[TimeControl "180+1"]
[EndTime "9:05:19 PDT"]
[Termination "Sokoloco won on time"]

1. Nf3 {[%clk 0:02:56.6]} 1... g6 {[%clk 0:02:57.4]} 2. d4 {[%clk 0:02:56.1]}
2... Bg7 {[%clk 0:02:58]} 3. c4 {[%clk 0:02:56.4]} 3... d6 {[%clk 0:02:56.7]} 4.
g3 {[%clk 0:02:56.3]} 4... c5 {[%clk 0:02:45.4]} 5. d5 {[%clk 0:02:47.1]} 5...
e6 {[%clk 0:02:42.7]} 6. Nc3 {[%clk 0:02:33.9]} 6... Bxc3+ {[%clk 0:02:42.8]} 7.
bxc3 {[%clk 0:02:33.8]} 7... e5 {[%clk 0:02:43.7]} 8. h4 {[%clk 0:02:01.6]} 8...
Nf6 {[%clk 0:02:36.8]} 9. Nd2 {[%clk 0:01:50.9]} 9... Bg4 {[%clk 0:02:09.6]} 10.
Qb3 {[%clk 0:01:37.7]} 10... b6 {[%clk 0:02:09.4]} 11. f3 {[%clk 0:01:36.1]}
11... Bc8 {[%clk 0:02:05.3]} 12. e4 {[%clk 0:01:33.6]} 12... Nbd7 {[%clk
0:02:01.6]} 13. Bd3 {[%clk 0:01:32.9]} 13... Nh5 {[%clk 0:02:01.7]} 14. Nf1
{[%clk 0:01:32.8]} 14... O-O {[%clk 0:01:45.6]} 15. Qc2 {[%clk 0:01:32.5]} 15...
b5 {[%clk 0:01:20]} 16. cxb5 {[%clk 0:01:22.7]} 16... c4 {[%clk 0:01:20.9]} 17.
Bxc4 {[%clk 0:01:21.6]} 17... Nb6 {[%clk 0:01:21.6]} 18. Bd3 {[%clk 0:01:20.9]}
18... f5 {[%clk 0:01:22.4]} 19. a4 {[%clk 0:01:11.1]} 19... fxe4 {[%clk
0:01:13]} 20. fxe4 {[%clk 0:01:12]} 20... Bg4 {[%clk 0:01:07.2]} 21. Bg5 {[%clk
0:01:00.5]} 21... Qc7 {[%clk 0:01:03.8]} 22. c4 {[%clk 0:00:52.2]} 22... Rac8
{[%clk 0:00:59.3]} 23. Ne3 {[%clk 0:00:45.9]} 23... Qd7 {[%clk 0:00:31.1]} 24.
a5 {[%clk 0:00:43.9]} 24... Na8 {[%clk 0:00:21.1]} 25. Rg1 {[%clk 0:00:43.9]}
25... Nc7 {[%clk 0:00:20.3]} 26. Nxg4 {[%clk 0:00:37.5]} 26... Nxb5 {[%clk
0:00:15.2]} 27. Nh6+ {[%clk 0:00:28.1]} 27... Kg7 {[%clk 0:00:15.8]} 28. Qa4
{[%clk 0:00:28.5]} 28... Qh3 {[%clk 0:00:06]} 29. Qxb5 {[%clk 0:00:25]} 29...
Rb8 {[%clk 0:00:05.6]} 30. Qa6 {[%clk 0:00:12.4]} 30... Qh2 {[%clk 0:00:06]} 31.
Qxa7+ {[%clk 0:00:12.6]} 31... Kh8 {[%clk 0:00:06.8]} 32. Bd2 {[%clk 0:00:07.1]}
32... Nxg3 {[%clk 0:00:05.3]} 33. O-O-O {[%clk 0:00:06.5]} 33... Ne2+ {[%clk
0:00:03]} 34. Bxe2 {[%clk 0:00:02.4]} 34... Qxe2 {[%clk 0:00:03.9]} 35. Rg3
{[%clk 0:00:02.4]} 35... Qxc4+ {[%clk 0:00:03.7]} 36. Rc3 {[%clk 0:00:02.8]}
36... Qa2 {[%clk 0:00:04.5]} 37. Nf7+ {[%clk 0:00:01.1]} 37... Kg8 {[%clk
0:00:03.1]} 38. Nh6+ {[%clk 0:00:01.1]} 38... Kh8 {[%clk 0:00:03.9]} 39. Nf7+
{[%clk 0:00:01.6]} 39... Kg7 {[%clk 0:00:02.4]} 40. Ng5+ {[%clk 0:00:01.7]}
40... Kf6 {[%clk 0:00:02.2]} 0-1

[Event "Early-Titled-Tuesday-Blitz-October-24-2023"]
[Site "Chess.com"]
[Date "2023.10.24"]
[Round "6"]
[White "IljaZaragatski"]
[Black "slorovel"]
[Result "1/2-1/2"]
[WhiteElo "2627"]
[BlackElo "2469"]
[TimeControl "180+1"]
[EndTime "9:05:19 PDT"]
[Termination "Game drawn - insufficient material"]

1. c4 {[%clk 0:03:00.9]} 1... g6 {[%clk 0:02:59.5]} 2. g3 {[%clk 0:03:01.1]}
2... Bg7 {[%clk 0:02:59.5]} 3. Bg2 {[%clk 0:03:01.7]} 3... e5 {[%clk 0:03:00.1]}
4. Nc3 {[%clk 0:03:01.7]} 4... Ne7 {[%clk 0:03:00.5]} 5. e4 {[%clk 0:02:49.1]}
5... O-O {[%clk 0:03:00]} 6. Nge2 {[%clk 0:02:49.8]} 6... c6 {[%clk 0:03:00]} 7.
O-O {[%clk 0:02:44.6]} 7... d6 {[%clk 0:03:00.1]} 8. d4 {[%clk 0:02:41.2]} 8...
Nd7 {[%clk 0:02:56.3]} 9. Be3 {[%clk 0:02:39.8]} 9... Qc7 {[%clk 0:02:55.6]} 10.
Qd2 {[%clk 0:02:37.9]} 10... Rd8 {[%clk 0:02:50.7]} 11. Rfd1 {[%clk 0:02:36.1]}
11... exd4 {[%clk 0:02:41.1]} 12. Nxd4 {[%clk 0:02:35.7]} 12... Nf8 {[%clk
0:02:41.5]} 13. Rac1 {[%clk 0:02:34.3]} 13... Ne6 {[%clk 0:02:39.4]} 14. Nde2
{[%clk 0:02:02.9]} 14... f5 {[%clk 0:02:12.7]} 15. Nf4 {[%clk 0:01:49.8]} 15...
Be5 {[%clk 0:01:52.3]} 16. Nd3 {[%clk 0:01:42.2]} 16... Bg7 {[%clk 0:01:51.7]}
17. Bh6 {[%clk 0:01:40.6]} 17... Bf6 {[%clk 0:01:46.4]} 18. Re1 {[%clk
0:01:37.6]} 18... Nc5 {[%clk 0:01:37.9]} 19. Nf4 {[%clk 0:01:19.1]} 19... Kf7
{[%clk 0:01:24.7]} 20. h4 {[%clk 0:01:18.9]} 20... Ng8 {[%clk 0:01:17.3]} 21.
Bg5 {[%clk 0:01:18.4]} 21... h6 {[%clk 0:01:17.8]} 22. Bxf6 {[%clk 0:01:16.7]}
22... Nxf6 {[%clk 0:01:18.7]} 23. b4 {[%clk 0:01:11.4]} 23... Ncxe4 {[%clk
0:01:07.4]} 24. Nxe4 {[%clk 0:01:12.2]} 24... Nxe4 {[%clk 0:01:06.5]} 25. Bxe4
{[%clk 0:01:09.7]} 25... fxe4 {[%clk 0:01:07.4]} 26. Rxe4 {[%clk 0:01:09.8]}
26... Bf5 {[%clk 0:01:07.5]} 27. Re3 {[%clk 0:01:10]} 27... Re8 {[%clk
0:01:06.4]} 28. Rce1 {[%clk 0:01:08.7]} 28... Rxe3 {[%clk 0:01:03]} 29. Rxe3
{[%clk 0:01:09.6]} 29... Re8 {[%clk 0:01:02.4]} 30. Ne2 {[%clk 0:01:05.2]} 30...
Rxe3 {[%clk 0:01:00.8]} 31. Qxe3 {[%clk 0:01:06.1]} 31... Qe7 {[%clk 0:01:00.5]}
32. Qxe7+ {[%clk 0:01:01.4]} 32... Kxe7 {[%clk 0:01:01.4]} 33. Nd4 {[%clk
0:01:01.8]} 33... Bd3 {[%clk 0:00:40.6]} 34. c5 {[%clk 0:01:01.9]} 34... dxc5
{[%clk 0:00:38.8]} 35. bxc5 {[%clk 0:01:02.8]} 35... Kd7 {[%clk 0:00:38.8]} 36.
f4 {[%clk 0:00:46.8]} 36... b6 {[%clk 0:00:38.1]} 37. Nf3 {[%clk 0:00:47]} 37...
Bb1 {[%clk 0:00:36.9]} 38. Ne5+ {[%clk 0:00:46.6]} 38... Kc7 {[%clk 0:00:35.2]}
39. cxb6+ {[%clk 0:00:43.8]} 39... axb6 {[%clk 0:00:35.3]} 40. a3 {[%clk
0:00:42.8]} 40... c5 {[%clk 0:00:33.3]} 41. Kf2 {[%clk 0:00:43.3]} 41... Kd6
{[%clk 0:00:31.6]} 42. Ke3 {[%clk 0:00:42.2]} 42... Kd5 {[%clk 0:00:31.6]} 43.
g4 {[%clk 0:00:41.7]} 43... b5 {[%clk 0:00:31.2]} 44. h5 {[%clk 0:00:33]} 44...
gxh5 {[%clk 0:00:29.2]} 45. gxh5 {[%clk 0:00:33.9]} 45... b4 {[%clk 0:00:29]}
46. axb4 {[%clk 0:00:33.6]} 46... cxb4 {[%clk 0:00:29.9]} 47. Ng4 {[%clk
0:00:25.1]} 47... b3 {[%clk 0:00:18.8]} 48. Kd2 {[%clk 0:00:25]} 48... Ke4
{[%clk 0:00:15.7]} 49. Nxh6 {[%clk 0:00:19.5]} 49... Kxf4 {[%clk 0:00:15.5]} 50.
Kc1 {[%clk 0:00:19]} 50... Be4 {[%clk 0:00:14.7]} 51. Kb2 {[%clk 0:00:18.6]}
51... Kg5 {[%clk 0:00:14.2]} 52. Nf7+ {[%clk 0:00:14.2]} 52... Kxh5 {[%clk
0:00:14.6]} 53. Kxb3 {[%clk 0:00:14.2]} 1/2-1/2

[Event "Early-Titled-Tuesday-Blitz-October-24-2023"]
[Site "Chess.com"]
[Date "2023.10.24"]
[Round "6"]
[White "dosto07"]
[Black "InitiatingASC"]
[Result "1-0"]
[WhiteElo "2497"]
[BlackElo "2329"]
[TimeControl "180+1"]
[EndTime "9:05:20 PDT"]
[Termination "dosto07 won on time"]

1. e4 {[%clk 0:03:00.9]} 1... e5 {[%clk 0:02:57.8]} 2. Nf3 {[%clk 0:03:00.9]}
2... Nf6 {[%clk 0:02:57.5]} 3. d4 {[%clk 0:03:00.3]} 3... Nxe4 {[%clk 0:02:57]}
4. Bd3 {[%clk 0:03:00.4]} 4... d5 {[%clk 0:02:57.4]} 5. Nxe5 {[%clk 0:03:00.5]}
5... Nc6 {[%clk 0:02:56.7]} 6. Nxc6 {[%clk 0:02:57.3]} 6... bxc6 {[%clk
0:02:56.6]} 7. O-O {[%clk 0:02:57.9]} 7... Be7 {[%clk 0:02:56.2]} 8. Nd2 {[%clk
0:02:58.1]} 8... Nd6 {[%clk 0:02:55.5]} 9. Re1 {[%clk 0:02:55.2]} 9... Bf5
{[%clk 0:02:55.2]} 10. Nf3 {[%clk 0:02:54.4]} 10... O-O {[%clk 0:02:54.7]} 11.
Bf4 {[%clk 0:02:53.1]} 11... Ne4 {[%clk 0:02:51.2]} 12. Ne5 {[%clk 0:02:50.7]}
12... Qe8 {[%clk 0:02:36.7]} 13. c3 {[%clk 0:02:34.8]} 13... c5 {[%clk
0:02:30.3]} 14. g4 {[%clk 0:02:24.7]} 14... Bg6 {[%clk 0:02:24.2]} 15. f3 {[%clk
0:02:13.8]} 15... Nf6 {[%clk 0:02:13.1]} 16. Bxg6 {[%clk 0:02:11]} 16... fxg6
{[%clk 0:02:03.1]} 17. Bg3 {[%clk 0:01:58]} 17... Bd6 {[%clk 0:01:41.5]} 18. Qe2
{[%clk 0:01:55.1]} 18... Qb8 {[%clk 0:01:34.7]} 19. Rad1 {[%clk 0:01:51.5]}
19... cxd4 {[%clk 0:01:29.5]} 20. cxd4 {[%clk 0:01:51.1]} 20... Qb4 {[%clk
0:01:25.7]} 21. Kg2 {[%clk 0:01:42.6]} 21... Rae8 {[%clk 0:01:23]} 22. Rd3
{[%clk 0:01:30.8]} 22... Qa4 {[%clk 0:01:16.2]} 23. b3 {[%clk 0:01:29.2]} 23...
Qa6 {[%clk 0:01:10.7]} 24. Re3 {[%clk 0:01:26.7]} 24... Qxe2+ {[%clk 0:01:01.5]}
25. R1xe2 {[%clk 0:01:24.5]} 25... c5 {[%clk 0:00:59.5]} 26. dxc5 {[%clk
0:01:21.6]} 26... Bxc5 {[%clk 0:00:59.4]} 27. Rc3 {[%clk 0:01:18.6]} 27... Bd4
{[%clk 0:00:57.5]} 28. Rd3 {[%clk 0:01:16.6]} 28... Bxe5 {[%clk 0:00:43.8]} 29.
Rxe5 {[%clk 0:01:16.3]} 29... Rc8 {[%clk 0:00:39.4]} 30. Rd2 {[%clk 0:01:12.2]}
30... h6 {[%clk 0:00:35.6]} 31. Bf2 {[%clk 0:01:07.9]} 31... a6 {[%clk
0:00:31.5]} 32. Bd4 {[%clk 0:01:07.6]} 32... Rfe8 {[%clk 0:00:25.7]} 33. Rxe8+
{[%clk 0:01:00.4]} 33... Nxe8 {[%clk 0:00:25.7]} 34. Be5 {[%clk 0:00:59.3]}
34... Rd8 {[%clk 0:00:25.8]} 35. Kf2 {[%clk 0:00:58.8]} 35... Kf7 {[%clk
0:00:23]} 36. Ke3 {[%clk 0:00:57.5]} 36... Nf6 {[%clk 0:00:22.4]} 37. Kd4 {[%clk
0:00:54.4]} 37... Nd7 {[%clk 0:00:20.6]} 38. Bg3 {[%clk 0:00:49.3]} 38... g5
{[%clk 0:00:20.7]} 39. Rc2 {[%clk 0:00:48.4]} 39... Nf6 {[%clk 0:00:08.2]} 40.
Rc7+ {[%clk 0:00:46.1]} 40... Kg6 {[%clk 0:00:07.7]} 41. Rc6 {[%clk 0:00:45]}
41... Ra8 {[%clk 0:00:07.7]} 42. Be5 {[%clk 0:00:39.4]} 42... a5 {[%clk
0:00:07.8]} 43. Bxf6 {[%clk 0:00:36.6]} 43... gxf6 {[%clk 0:00:08.7]} 44. Kxd5
{[%clk 0:00:37]} 44... Rd8+ {[%clk 0:00:08.3]} 45. Rd6 {[%clk 0:00:36.7]} 45...
Re8 {[%clk 0:00:08.2]} 46. Ra6 {[%clk 0:00:34.1]} 46... Re2 {[%clk 0:00:07]} 47.
Rxa5 {[%clk 0:00:34.1]} 47... Re5+ {[%clk 0:00:06.8]} 48. Kc6 {[%clk 0:00:32.3]}
48... Rxa5 {[%clk 0:00:07.7]} 49. a4 {[%clk 0:00:32.3]} 49... Re5 {[%clk
0:00:07.7]} 50. b4 {[%clk 0:00:31.4]} 50... f5 {[%clk 0:00:05.6]} 51. b5 {[%clk
0:00:29.7]} 51... fxg4 {[%clk 0:00:02.2]} 52. fxg4 {[%clk 0:00:30.6]} 52... Re4
{[%clk 0:00:02]} 53. a5 {[%clk 0:00:30.7]} 53... Rxg4 {[%clk 0:00:02.5]} 54. b6
{[%clk 0:00:29]} 54... Rc4+ {[%clk 0:00:01.8]} 55. Kb5 {[%clk 0:00:28.1]} 55...
Rc1 {[%clk 0:00:01.6]} 56. b7 {[%clk 0:00:28.1]} 1-0

[Event "Early-Titled-Tuesday-Blitz-October-24-2023"]
[Site "Chess.com"]
[Date "2023.10.24"]
[Round "6"]
[White "wonderfultime"]
[Black "Legendinunknown"]
[Result "0-1"]
[WhiteElo "2983"]
[BlackElo "2806"]
[TimeControl "180+1"]
[EndTime "9:05:21 PDT"]
[Termination "Legendinunknown won by resignation"]

1. d4 {[%clk 0:02:56]} 1... Nf6 {[%clk 0:02:59.7]} 2. c4 {[%clk 0:02:56.1]} 2...
e6 {[%clk 0:03:00.1]} 3. Nc3 {[%clk 0:02:55.9]} 3... Bb4 {[%clk 0:02:59.9]} 4.
e3 {[%clk 0:02:56.4]} 4... b6 {[%clk 0:02:59.8]} 5. Nf3 {[%clk 0:02:51.2]} 5...
Bb7 {[%clk 0:02:58.6]} 6. Bd3 {[%clk 0:02:51.3]} 6... Ne4 {[%clk 0:02:58.7]} 7.
Bd2 {[%clk 0:02:43.8]} 7... Bxc3 {[%clk 0:02:57.8]} 8. Bxc3 {[%clk 0:02:43.1]}
8... O-O {[%clk 0:02:55.3]} 9. O-O {[%clk 0:02:43.3]} 9... f5 {[%clk 0:02:55]}
10. Rc1 {[%clk 0:02:42.4]} 10... d6 {[%clk 0:02:54.7]} 11. Be1 {[%clk
0:02:40.2]} 11... Nd7 {[%clk 0:02:53.1]} 12. b4 {[%clk 0:02:34.4]} 12... a5
{[%clk 0:02:52.8]} 13. bxa5 {[%clk 0:02:33.9]} 13... bxa5 {[%clk 0:02:51]} 14.
Qb3 {[%clk 0:02:33.2]} 14... Rb8 {[%clk 0:02:44.6]} 15. Qa3 {[%clk 0:02:23.3]}
15... Ng5 {[%clk 0:02:42.1]} 16. Nd2 {[%clk 0:01:07.6]} 16... f4 {[%clk
0:02:21.4]} 17. exf4 {[%clk 0:00:47.3]} 17... Rxf4 {[%clk 0:02:19.2]} 18. f3
{[%clk 0:00:47.9]} 18... Rxd4 {[%clk 0:02:15.9]} 19. Bf2 {[%clk 0:00:46.2]}
19... Rf4 {[%clk 0:02:12.7]} 20. Be3 {[%clk 0:00:45.5]} 20... Rf8 {[%clk
0:02:09.7]} 21. Qxa5 {[%clk 0:00:45.4]} 21... Nf7 {[%clk 0:02:02.1]} 22. Qc3
{[%clk 0:00:41.5]} 22... c5 {[%clk 0:01:58.6]} 23. Rb1 {[%clk 0:00:36.2]} 23...
Bc6 {[%clk 0:01:57.8]} 24. Bc2 {[%clk 0:00:32]} 24... Ra8 {[%clk 0:01:50.7]} 25.
Rb2 {[%clk 0:00:26.1]} 25... Qf6 {[%clk 0:01:49.3]} 26. Qxf6 {[%clk 0:00:22.1]}
26... gxf6 {[%clk 0:01:50.2]} 27. Ra1 {[%clk 0:00:17.6]} 27... Rfb8 {[%clk
0:01:49.3]} 28. Rxb8+ {[%clk 0:00:17.3]} 28... Nxb8 {[%clk 0:01:49.8]} 29. a4
{[%clk 0:00:17.5]} 29... Ne5 {[%clk 0:01:47.3]} 30. h3 {[%clk 0:00:15.2]} 30...
Nbd7 {[%clk 0:01:46.2]} 31. f4 {[%clk 0:00:15.3]} 31... Nf7 {[%clk 0:01:45.7]}
32. a5 {[%clk 0:00:15.6]} 32... Ra6 {[%clk 0:01:39.3]} 33. f5 {[%clk 0:00:13.9]}
33... e5 {[%clk 0:01:37.5]} 34. Ne4 {[%clk 0:00:13.7]} 34... Kg7 {[%clk
0:01:34.9]} 35. Nc3 {[%clk 0:00:14]} 35... Nd8 {[%clk 0:01:28.3]} 36. Nb5 {[%clk
0:00:14.2]} 36... Nb7 {[%clk 0:01:27.2]} 37. Bd2 {[%clk 0:00:14.8]} 37... Nb8
{[%clk 0:01:24.6]} 38. Nc7 {[%clk 0:00:15.2]} 38... Ra7 {[%clk 0:01:24.6]} 39.
a6 {[%clk 0:00:13.3]} 39... Kf7 {[%clk 0:01:16.1]} 40. Bc3 {[%clk 0:00:10.1]}
40... Nd8 {[%clk 0:01:13.3]} 41. Ba5 {[%clk 0:00:09.7]} 41... Nd7 {[%clk
0:01:07.1]} 42. Rb1 {[%clk 0:00:06.5]} 42... Ke7 {[%clk 0:01:01.3]} 43. Kf2
{[%clk 0:00:06.6]} 43... Ba8 {[%clk 0:01:00.5]} 44. Ke3 {[%clk 0:00:05.7]} 44...
Nc6 {[%clk 0:00:58.5]} 45. Nd5+ {[%clk 0:00:06.1]} 45... Kf7 {[%clk 0:00:58.2]}
46. Bc7 {[%clk 0:00:05.9]} 46... Nb4 {[%clk 0:00:54.2]} 47. Bxd6 {[%clk
0:00:05.2]} 47... Bxd5 {[%clk 0:00:51.4]} 48. cxd5 {[%clk 0:00:06.1]} 48... Rxa6
{[%clk 0:00:52]} 49. Bxc5 {[%clk 0:00:02.1]} 49... Nxd5+ {[%clk 0:00:52.3]} 50.
Ke4 {[%clk 0:00:02.4]} 50... Nc3+ {[%clk 0:00:51.9]} 51. Kd3 {[%clk 0:00:03.1]}
51... Nxb1 {[%clk 0:00:51]} 52. Bb4 {[%clk 0:00:03.9]} 52... Rb6 {[%clk
0:00:46.3]} 53. Ba5 {[%clk 0:00:04.5]} 53... Rb5 {[%clk 0:00:45.4]} 54. Be1
{[%clk 0:00:05.2]} 54... Na3 {[%clk 0:00:44.7]} 55. Ke2 {[%clk 0:00:04.7]} 55...
Nxc2 {[%clk 0:00:44.6]} 0-1

[Event "Early-Titled-Tuesday-Blitz-October-24-2023"]
[Site "Chess.com"]
[Date "2023.10.24"]
[Round "6"]
[White "Balla_Tamas"]
[Black "CraiggoryC"]
[Result "0-1"]
[WhiteElo "2340"]
[BlackElo "2233"]
[TimeControl "180+1"]
[EndTime "9:05:21 PDT"]
[Termination "CraiggoryC won by checkmate"]

1. e4 {[%clk 0:03:00.9]} 1... e6 {[%clk 0:02:56.9]} 2. d4 {[%clk 0:03:00.5]}
2... d5 {[%clk 0:02:57.5]} 3. Nd2 {[%clk 0:03:01]} 3... Be7 {[%clk 0:02:57.2]}
4. e5 {[%clk 0:02:58.4]} 4... c5 {[%clk 0:02:57]} 5. Qg4 {[%clk 0:02:55.8]} 5...
Kf8 {[%clk 0:02:53]} 6. c3 {[%clk 0:02:54.3]} 6... cxd4 {[%clk 0:02:45.2]} 7.
cxd4 {[%clk 0:02:53.9]} 7... Nh6 {[%clk 0:02:39.4]} 8. Qd1 {[%clk 0:02:39.8]}
8... Nf5 {[%clk 0:02:38.9]} 9. Ngf3 {[%clk 0:02:40.1]} 9... Nc6 {[%clk
0:02:37.1]} 10. Nb3 {[%clk 0:02:26.3]} 10... a5 {[%clk 0:02:31.5]} 11. Bd3
{[%clk 0:02:22.1]} 11... a4 {[%clk 0:02:16.3]} 12. Bxf5 {[%clk 0:02:07.6]} 12...
axb3 {[%clk 0:02:05.1]} 13. Bd3 {[%clk 0:01:55.2]} 13... Rxa2 {[%clk 0:01:45.4]}
14. Rb1 {[%clk 0:01:52.9]} 14... Qa5+ {[%clk 0:01:37.2]} 15. Bd2 {[%clk
0:01:52.1]} 15... Bb4 {[%clk 0:01:34.6]} 16. O-O {[%clk 0:01:46.2]} 16... Bxd2
{[%clk 0:01:25.5]} 17. Nxd2 {[%clk 0:01:47.1]} 17... Nxd4 {[%clk 0:01:23.1]} 18.
Nxb3 {[%clk 0:01:45.9]} 18... Nxb3 {[%clk 0:01:15.9]} 19. Qxb3 {[%clk
0:01:46.8]} 19... g6 {[%clk 0:00:53.8]} 20. Rbc1 {[%clk 0:01:30.8]} 20... Kg7
{[%clk 0:00:52]} 21. h4 {[%clk 0:01:31]} 21... h5 {[%clk 0:00:41.3]} 22. Rc2
{[%clk 0:01:20.7]} 22... Qa4 {[%clk 0:00:20]} 23. Qc3 {[%clk 0:01:10]} 23... Bd7
{[%clk 0:00:17.5]} 24. Qd2 {[%clk 0:00:42.6]} 24... Rc8 {[%clk 0:00:12.9]} 25.
Rxc8 {[%clk 0:00:42.4]} 25... Bxc8 {[%clk 0:00:13.8]} 26. Qg5 {[%clk 0:00:42.8]}
26... Bd7 {[%clk 0:00:11.4]} 27. Qf6+ {[%clk 0:00:42.9]} 27... Kg8 {[%clk
0:00:11.1]} 28. Rc1 {[%clk 0:00:34.2]} 28... Ra1 {[%clk 0:00:10.6]} 29. Rxa1
{[%clk 0:00:31.3]} 29... Qxa1+ {[%clk 0:00:10.2]} 30. Kh2 {[%clk 0:00:31.4]}
30... Qxb2 {[%clk 0:00:10.4]} 31. Qd8+ {[%clk 0:00:31.2]} 31... Kg7 {[%clk
0:00:09.3]} 32. Qxd7 {[%clk 0:00:31.4]} 32... Qxe5+ {[%clk 0:00:09.9]} 33. g3
{[%clk 0:00:26.9]} 33... Qd4 {[%clk 0:00:10]} 34. Bb5 {[%clk 0:00:17.5]} 34...
Qxf2+ {[%clk 0:00:09.7]} 35. Kh3 {[%clk 0:00:17.9]} 35... Qf5+ {[%clk
0:00:09.2]} 36. Kg2 {[%clk 0:00:17.8]} 36... Qe4+ {[%clk 0:00:09]} 37. Kf2
{[%clk 0:00:18.1]} 37... d4 {[%clk 0:00:09]} 38. Be2 {[%clk 0:00:16.6]} 38...
Qe3+ {[%clk 0:00:08.7]} 39. Kf1 {[%clk 0:00:16.7]} 39... e5 {[%clk 0:00:07.3]}
40. Qh3 {[%clk 0:00:12]} 40... e4 {[%clk 0:00:07.2]} 41. Qg2 {[%clk 0:00:09.4]}
41... d3 {[%clk 0:00:07]} 42. Bd1 {[%clk 0:00:09.8]} 42... Qc1 {[%clk
0:00:06.5]} 43. Ke1 {[%clk 0:00:08.1]} 43... e3 {[%clk 0:00:06.5]} 44. Qe4
{[%clk 0:00:06]} 44... Qd2+ {[%clk 0:00:05.7]} 45. Kf1 {[%clk 0:00:02.2]} 45...
Qf2# {[%clk 0:00:06.6]} 0-1